bitfinex-derivatives/quotes_ETHF0:USTF0_20240923
["timestamp","ask_amount","ask_price","bid_price","bid_amount"]
[1727084478223,3.982,2661.7,2661.5,0.73604]
[1727084478415,3.982,2661.7,2661.6,3.58353]
[1727084479312,2.05,2661.8,2661.7,0.37571]
[1727084479510,2.05,2661.8,2661.6,3.58352]
[1727084480121,5.50899,2661.9,2661.6,3.58352]
[1727084481624,2.42571,2661.7,2661.6,3.2078]
[1727084481919,2.05,2661.7,2661.6,3.2078]
[1727084482126,2.05,2661.7,2661.5,0.73604]
[1727084483024,2.05,2661.7,2661.6,0.37573]
[1727084484421,2.05,2661.7,2661.5,0.3603]
[1727084484620,2.05,2661.7,2661.6,0.37573]
[1727084485621,2.05,2661.7,2661.5,0.73604]
[1727084486420,0.95,2661.6,2661.5,0.73604]
[1727084486629,3.993,2661.8,2661.5,0.73604]
[1727084486828,0.95,2661.7,2661.5,0.73604]
[1727084487021,0.37573,2661.6,2661.4,0.3633]
[1727084487227,0.95,2661.5,2661.2,3.2078]
[1727084487528,1.32577,2661.3,2661.2,3.2078]
[1727084487923,0.95,2661.3,2661.2,3.2078]
[1727084488930,4.7076,2661.3,2660.9,3.2078]
[1727084489228,0.95,2661.1,2660.8,0.3827]
[1727084489428,0.95,2660.9,2660.8,0.3827]
[1727084490019,0.95,2660.9,2660.7,0.73975]
[1727084490230,1.7111,2660.9,2660.7,0.73975]
[1727084490428,2.05,2660.8,2660.5,0.3827]
[1727084490627,2.05,2660.6,2660.3,3.2078]
[1727084490825,2.42587,2660.6,2660.3,3.2078]
[1727084491018,2.80677,2660.6,2660.3,3.2078]
[1727084491224,2.80678,2660.6,2660.3,3.2078]
[1727084491625,0.37588,2660.5,2660.3,3.2078]
[1727084491931,2.4309,2660.6,2660.3,3.2078]
[1727084491932,2.05,2660.4,2660.3,3.2078]
[1727084492127,3.1794,2660.4,2660.3,3.2078]
[1727084492329,0.37593,2660.2,2659.8,3.2078]
[1727084492531,2.05,2660.0,2659.8,3.2078]
[1727084493832,0.37597,2659.9,2659.8,3.2078]
[1727084494539,2.42596,2660.0,2659.8,3.2078]
[1727084494836,0.37597,2659.9,2659.8,3.2078]
[1727084495023,2.05,2660.0,2659.8,3.2078]
[1727084495227,2.05,2660.0,2659.3,3.9779]
[1727084495428,0.3946,2660.1,2659.3,3.9779]
[1727084495429,2.05,2659.4,2659.3,3.9779]
[1727084495827,2.42604,2659.4,2658.6,3.2078]
[1727084496026,2.42604,2659.4,2658.9,3.2078]
[1727084496027,2.05,2659.1,2658.9,3.2078]
[1727084496237,2.05,2659.1,2658.7,0.7725]
[1727084496529,2.05,2658.8,2658.7,0.3788]
[1727084496935,2.05,2658.8,2658.6,3.2078]
[1727084498131,2.05,2658.8,2658.6,28.7078]
[1727084499538,2.05,2658.8,2658.6,3.2078]
[1727084500227,0.3609,2659.0,2658.6,3.58394]
[1727084500436,0.3609,2659.0,2658.6,3.2078]
[1727084500745,2.05,2658.8,2658.6,3.2078]
[1727084501824,2.05,2658.7,2658.6,3.2078]
[1727084502232,2.05,2658.7,2658.6,6.9694]
[1727084502427,2.05,2658.7,2658.6,3.2078]
[1727084502635,2.05,2658.9,2658.6,3.2078]
[1727084503828,2.05,2659.1,2658.8,0.37612]
[1727084504034,2.05,2659.1,2658.9,3.5839]
[1727084504543,6.6295,2659.3,2658.9,3.5839]
[1727084504837,7.00555,2659.3,2659.0,0.3645]
[1727084505144,2.4265,2659.3,2659.0,0.74059]
[1727084505338,2.05,2659.3,2659.0,0.74059]
[1727084505639,2.42601,2659.6,2659.2,3.58387]
[1727084505839,2.05,2659.6,2659.2,3.58387]
[1727084506039,2.42602,2659.6,2659.2,3.58387]
[1727084506344,2.05,2659.4,2659.0,0.3645]
[1727084506542,2.05,2659.4,2659.2,3.58386]
[1727084507042,2.05,2659.6,2659.2,3.58386]
[1727084507337,2.42602,2659.6,2659.2,3.2078]
[1727084507541,0.37603,2659.5,2659.2,3.2078]
[1727084507943,2.42602,2659.6,2659.2,3.58387]
[1727084508139,2.05,2659.6,2659.3,0.37605]
[1727084508340,0.3687,2659.7,2659.2,3.2078]
[1727084508539,4.5727,2659.7,2659.3,0.3624]
[1727084508733,4.5727,2659.7,2659.3,0.73844]
[1727084508943,2.05,2659.6,2659.3,0.73844]
[1727084510439,2.05,2659.6,2659.2,3.58386]
[1727084510841,2.42601,2659.6,2659.2,3.58386]
[1727084511143,2.05,2659.4,2659.2,3.2078]
[1727084511445,2.42605,2659.4,2659.2,3.2078]
[1727084511835,4.13605,2659.3,2659.2,3.2078]
[1727084512040,4.13605,2659.3,2658.7,3.2078]
[1727084512041,0.37609,2659.1,2658.7,3.2078]
[1727084512240,2.05,2658.9,2658.7,3.58393]
[1727084513140,0.37612,2658.8,2658.7,3.2078]
[1727084513341,2.05,2658.9,2658.1,3.2948]
[1727084513543,2.05,2658.4,2658.2,0.3762]
[1727084513747,2.05,2658.4,2658.3,3.58399]
[1727084513946,2.05,2658.6,2658.3,3.58399]
[1727084514149,2.42616,2658.6,2658.3,3.2078]
[1727084514341,2.42616,2658.6,2658.3,3.58399]
[1727084515052,2.05,2658.6,2658.4,0.37618]
[1727084515452,0.37613,2658.8,2658.6,0.37614]
[1727084515453,2.05,2658.8,2658.6,0.37614]
[1727084515645,2.05,2658.8,2658.4,3.2078]
[1727084515841,0.37614,2658.7,2658.4,3.58397]
[1727084516043,2.42616,2658.6,2658.4,3.2078]
[1727084516246,0.37617,2658.5,2658.4,3.2078]
[1727084516552,2.42616,2658.6,2658.4,3.2078]
[1727084517153,2.05,2658.6,2658.4,3.2078]
[1727084519749,2.42616,2658.6,2658.4,3.2078]
[1727084519943,2.8236,2658.6,2658.4,3.2078]
[1727084520144,3.19975,2658.6,2658.4,3.2078]
[1727084520439,2.8236,2658.6,2658.4,3.2078]
[1727084520644,0.37617,2658.5,2658.4,3.2078]
[1727084521045,2.8236,2658.6,2658.4,3.2078]
[1727084521245,0.37619,2658.4,2658.1,3.5974]
[1727084521444,2.05,2658.2,2658.1,3.2078]
[1727084522948,2.42621,2658.2,2657.8,0.37626]
[1727084523252,2.05,2658.0,2657.8,0.37626]
[1727084523944,2.05,2658.0,2657.9,3.2078]
[1727084524561,2.4176,2658.0,2657.7,0.374]
[1727084524749,2.4176,2658.0,2657.7,0.75027]
[1727084525153,2.79384,2658.0,2657.7,0.374]
[1727084525355,3.15784,2658.0,2657.7,0.374]
[1727084525657,2.05,2657.8,2657.6,3.95299]
[1727084526057,2.05,2657.8,2657.6,3.5767]
[1727084526259,2.05,2657.8,2657.6,3.2078]
[1727084526456,2.42627,2657.8,2657.6,3.2078]
[1727084527359,0.37628,2657.7,2657.6,3.2078]
[1727084527856,0.37628,2657.7,2657.2,0.37634]
[1727084527857,0.3763,2657.6,2657.2,0.37634]
[1727084528154,2.05,2657.8,2657.4,3.2078]
[1727084528356,3.1465,2658.0,2657.7,3.58407]
[1727084528659,3.1465,2658.0,2657.8,0.37626]
[1727084529048,0.37622,2658.2,2658.1,0.37621]
[1727084529049,2.05,2658.2,2658.1,0.37621]
[1727084529250,6.255,2658.2,2657.9,25.5]
[1727084529455,6.63121,2658.2,2658.0,0.37623]
[1727084529855,6.63121,2658.2,2658.0,3.58403]
[1727084530049,6.63121,2658.2,2658.0,0.76493]
[1727084530252,2.05,2658.2,2658.1,0.37622]
[1727084530556,2.05,2658.2,2658.0,3.97273]
[1727084530750,2.05,2658.2,2658.1,0.37622]
[1727084534247,2.05,2658.2,2658.0,3.2078]
[1727084534452,0.37626,2657.9,2657.7,3.2078]
[1727084534756,0.3763,2657.6,2657.4,0.37631]
[1727084534954,2.05,2657.5,2657.4,0.37631]
[1727084535154,2.05,2657.5,2657.4,4.13951]
[1727084535858,0.7553,2657.8,2657.4,4.13951]
[1727084535859,2.05,2657.7,2657.6,0.37628]
[1727084536058,2.05,2657.7,2657.6,3.58408]
[1727084537050,2.05,2657.9,2657.8,0.37626]
[1727084538052,2.42625,2657.9,2657.8,0.37626]
[1727084538366,2.05,2657.9,2657.8,0.37626]
[1727084539766,2.05,2657.9,2657.8,0.74196]
[1727084541057,2.42625,2657.9,2657.8,0.3657]
[1727084541257,0.37626,2657.8,2657.7,0.3905]
[1727084541458,0.37626,2657.8,2657.6,3.58409]
[1727084541667,2.42628,2657.7,2657.6,3.2078]
[1727084542172,2.4458,2657.7,2657.6,3.2078]
[1727084542663,2.82208,2657.7,2657.6,3.2078]
[1727084542861,2.4458,2657.7,2657.6,3.2078]
[1727084543366,2.05,2657.9,2657.7,0.37627]
[1727084543564,2.05,2657.9,2657.8,0.3855]
[1727084543771,2.05,2657.9,2657.7,0.37628]
[1727084543961,2.05,2657.9,2657.6,3.2078]
[1727084544159,2.05,2657.7,2657.6,3.58409]
[1727084545171,2.05,2657.7,2657.6,3.2078]
[1727084545469,2.42628,2657.7,2657.6,3.2078]
[1727084545669,2.434,2657.7,2657.6,3.2078]
[1727084547668,2.434,2657.7,2657.6,3.58409]
[1727084548063,2.434,2657.7,2657.6,3.2078]
[1727084552176,2.434,2657.7,2657.6,3.58409]
[1727084552576,2.81029,2657.7,2657.3,3.58413]
[1727084552877,2.05,2657.4,2657.3,3.58413]
[1727084553267,2.42632,2657.4,2657.3,3.2078]
[1727084553483,2.05,2657.4,2657.3,3.2078]
[1727084554171,2.05,2657.4,2657.3,3.58414]
[1727084554365,2.4311,2657.6,2657.4,0.37632]
[1727084554565,2.4311,2657.6,2657.4,0.73802]
[1727084555172,2.80739,2657.6,2657.4,0.3617]
[1727084556072,2.4311,2657.6,2657.4,0.3617]
[1727084556272,2.80739,2657.6,2657.4,0.3617]
[1727084556577,2.4311,2657.6,2657.4,0.3617]
[1727084557584,2.8074,2657.6,2657.4,0.3617]
[1727084558769,6.055,2657.6,2657.4,0.3617]
[1727084558975,6.4313,2657.6,2657.3,3.58413]
[1727084559177,2.42632,2657.4,2657.3,3.2078]
[1727084559977,2.42632,2657.4,2657.1,0.75996]
[1727084559978,2.05,2657.4,2657.2,28.7078]
[1727084560478,2.05,2657.4,2657.2,29.08414]
[1727084560677,2.05,2657.4,2657.3,0.37634]
[1727084560885,2.05,2657.4,2657.3,4.51374]
[1727084561084,2.05,2657.6,2657.5,0.37631]
[1727084561280,2.05,2657.6,2657.5,3.58411]
[1727084561786,2.05,2657.6,2657.5,25.87631]
[1727084562084,2.05,2657.6,2657.5,32.84731]
[1727084562578,2.05,2658.0,2657.9,0.37625]
[1727084562787,2.05,2658.0,2657.9,7.34645]
[1727084563377,2.05,2658.0,2657.9,32.84645]
[1727084563982,2.05,2658.4,2658.3,0.37619]
[1727084564388,2.05,2658.4,2658.3,4.13779]
[1727084564683,2.05,2658.4,2658.3,4.49859]
[1727084565070,2.05,2658.4,2658.3,0.3608]
[1727084567483,5.8116,2658.4,2657.9,3.2078]
[1727084567683,2.05,2658.0,2657.9,3.2078]
[1727084567880,2.05,2658.0,2657.9,0.37625]
[1727084568279,2.05,2658.0,2657.8,0.37626]
[1727084568478,2.05,2658.0,2657.9,0.37625]
[1727084568682,2.05,2658.0,2657.9,3.58405]
[1727084568890,2.05,2658.0,2657.9,3.2078]
[1727084569487,2.05,2658.0,2657.9,3.58405]
[1727084570379,2.05,2658.0,2657.9,7.34645]
[1727084571582,2.05,2658.2,2658.1,0.37622]
[1727084571781,3.5897,2658.6,2658.2,0.3762]
[1727084571782,2.42618,2658.4,2658.2,0.3762]
[1727084571987,2.42618,2658.4,2658.3,3.2078]
[1727084572192,2.05,2658.4,2658.3,3.58399]
[1727084572489,2.42618,2658.4,2658.3,3.2078]
[1727084574287,0.37621,2658.3,2658.1,3.2078]
[1727084574480,2.05,2658.2,2658.0,0.37623]
[1727084574681,2.833,2658.2,2658.0,0.37623]
[1727084575684,2.05,2658.4,2658.1,3.2078]
[1727084575991,2.05,2658.4,2658.2,0.3762]
[1727084576281,2.05,2658.4,2658.2,0.7438]
[1727084579977,2.05,2658.4,2658.2,0.37621]
[1727084580176,2.05,2658.4,2658.1,3.58402]
[1727084580177,2.81799,2658.4,2658.1,3.58402]
[1727084580383,2.05,2658.2,2658.1,3.58402]
[1727084581483,2.42621,2658.2,2657.9,0.3665]
[1727084581684,0.3662,2658.1,2657.9,0.74274]
[1727084581891,0.7474,2658.1,2658.0,0.37624]
[1727084582483,0.7474,2658.1,2657.9,0.37625]
[1727084582694,0.37624,2658.0,2657.8,3.2078]
[1727084582993,2.05,2657.9,2657.8,3.58406]
[1727084583197,2.05,2657.9,2657.8,3.2078]
[1727084583896,2.05,2657.9,2657.8,3.58406]
[1727084584095,2.05,2657.9,2657.8,3.2078]
[1727084584597,2.05,2657.9,2657.8,3.58406]
[1727084584798,2.05,2657.9,2657.8,3.2078]
[1727084585787,2.42625,2657.9,2657.8,3.2078]
[1727084586187,2.05,2657.9,2657.8,3.2078]
[1727084587597,0.37628,2657.8,2657.5,28.7078]
[1727084587805,2.05,2657.6,2657.5,25.5]
[1727084588296,2.4206,2657.6,2657.5,25.5]
[1727084588486,2.4206,2657.6,2657.5,25.87631]
[1727084588691,2.4206,2657.6,2657.4,0.37632]
[1727084589092,2.4206,2657.6,2657.4,25.87632]
[1727084589292,2.4206,2657.6,2657.4,0.37632]
[1727084591394,2.4206,2657.6,2657.3,25.87633]
[1727084591590,2.05,2657.4,2657.3,0.37633]
[1727084592004,2.05,2657.4,2657.2,3.58415]
[1727084592193,2.42632,2657.4,2657.2,3.2078]
[1727084592394,0.7716,2657.3,2657.2,3.2078]
[1727084592599,1.14794,2657.3,2657.2,3.2078]
[1727084592900,5.60794,2657.3,2657.2,3.2078]
[1727084593106,8.59879,2657.3,2657.2,3.2078]
[1727084593699,7.65794,2657.3,2657.2,3.2078]
[1727084594900,7.2816,2657.3,2657.2,3.2078]
[1727084595203,7.65794,2657.3,2657.2,3.2078]
[1727084597400,0.37637,2657.1,2656.8,0.3764]
[1727084597601,2.05,2656.9,2656.8,0.3764]
[1727084597904,2.05,2656.9,2656.6,3.6013]
[1727084598102,2.05,2656.7,2656.6,3.2078]
[1727084598602,5.814,2656.7,2656.1,3.2078]
[1727084598797,2.05,2656.2,2656.1,3.5847]
[1727084598998,4.454,2656.7,2656.1,3.9646]
[1727084598999,0.37645,2656.6,2656.1,3.9646]
[1727084599206,2.05,2656.2,2656.1,29.84111]
[1727084599909,2.05,2656.4,2656.3,0.37647]
[1727084600405,2.05,2656.4,2656.3,4.14127]
[1727084602203,4.8254,2656.8,2656.6,0.37643]
[1727084602408,2.05,2656.7,2656.6,0.37643]
[1727084603207,2.42642,2656.7,2656.6,0.74123]
[1727084603506,2.42642,2656.7,2656.6,0.3648]
[1727084604110,2.05,2656.7,2656.6,0.74123]
[1727084604605,2.05,2656.7,2656.5,0.3875]
[1727084604799,2.4382,2656.7,2656.5,0.3875]
[1727084605107,2.81463,2656.7,2656.4,3.2078]
[1727084605303,0.37644,2656.6,2656.4,3.2078]
[1727084605496,0.3764,2656.5,2656.4,3.2078]
[1727084606708,0.3764,2656.5,2656.4,3.58426]
[1727084607106,0.3764,2656.5,2656.4,3.2078]
[1727084607808,2.4382,2656.7,2656.5,0.37644]
[1727084608001,4.455,2656.6,2656.5,0.37644]
[1727084610805,2.05,2656.7,2656.6,0.37643]
[1727084614411,0.3673,2657.2,2656.6,3.764]
[1727084614610,0.3858,2657.3,2657.2,0.37635]
[1727084614809,9.4172,2657.5,2657.2,0.37635]
[1727084614810,2.05,2657.5,2657.4,0.37632]
[1727084615006,0.3762,2657.7,2657.6,0.37629]
[1727084615407,2.05,2657.8,2657.7,0.37628]
[1727084615712,2.05,2657.8,2657.7,0.77328]
[1727084616903,2.05,2657.8,2657.5,3.2078]
[1727084617102,2.05,2657.6,2657.5,3.2078]
[1727084618726,2.05,2657.6,2657.1,3.58416]
[1727084618727,0.37631,2657.5,2657.1,3.58416]
[1727084618915,2.05,2657.2,2657.1,3.58416]
[1727084621811,0.3601,2657.5,2657.1,3.2078]
[1727084622119,0.3601,2657.5,2657.3,0.37633]
[1727084622317,2.05,2657.6,2657.5,0.37631]
[1727084622610,0.3762,2657.7,2657.6,0.37629]
[1727084623012,2.42627,2657.8,2657.6,0.37629]
[1727084623211,2.42626,2657.8,2657.6,0.37629]
[1727084623406,2.05,2657.8,2657.6,0.37629]
[1727084623610,2.42627,2657.8,2657.6,0.37629]
[1727084624012,2.05,2657.8,2657.6,0.37629]
[1727084624514,2.05,2657.8,2657.5,0.3635]
[1727084624714,0.73828,2657.7,2657.5,0.7398]
[1727084625511,0.362,2657.7,2657.5,0.7398]
[1727084626116,2.05,2657.6,2657.4,3.2078]
[1727084626312,0.3981,2657.5,2657.4,3.58412]
[1727084626619,0.79,2657.5,2657.4,3.58412]
[1727084626812,0.79,2657.5,2657.4,3.2078]
[1727084627019,0.79,2657.5,2657.4,3.58412]
[1727084628418,0.3919,2657.5,2657.4,3.58412]
[1727084628625,2.05,2657.6,2657.5,0.37631]
[1727084629423,2.4295,2657.6,2657.5,0.37631]
[1727084631017,2.4295,2657.6,2657.4,0.37631]
[1727084631214,2.4295,2657.6,2657.3,3.2078]
[1727084631414,2.4295,2657.6,2657.5,0.37631]
[1727084631625,2.4295,2657.6,2657.3,3.2078]
[1727084632223,0.398,2657.5,2657.4,0.37632]
[1727084638221,2.05,2657.8,2657.4,4.704]
[1727084638428,0.7551,2658.0,2657.9,0.37625]
[1727084639924,0.3615,2658.0,2657.9,0.37625]
[1727084640619,2.4115,2658.0,2657.9,0.37625]
[1727084643224,0.3615,2658.0,2657.9,0.37625]
[1727084643528,2.4115,2658.0,2657.9,0.37625]
[1727084645035,2.4115,2658.0,2657.8,0.37626]
[1727084645426,2.4115,2658.0,2657.9,0.37625]
[1727084646126,2.4115,2658.0,2657.6,3.2078]
[1727084647032,2.4115,2658.0,2657.8,0.37626]
[1727084647240,2.4115,2658.0,2657.9,0.37625]
[1727084648232,2.4115,2658.0,2657.8,0.37626]
[1727084648621,2.4115,2658.0,2657.9,0.37625]
[1727084648825,2.4115,2658.0,2657.6,3.2078]
[1727084648826,2.4115,2658.0,2657.8,0.37626]
[1727084649122,2.78774,2658.0,2657.6,3.2078]
[1727084649426,2.78774,2658.0,2657.7,0.37627]
[1727084649827,2.05,2657.8,2657.6,3.2078]
[1727084650027,2.05,2657.8,2657.7,0.37628]
[1727084650633,2.05,2657.8,2657.6,3.58408]
[1727084650931,0.3668,2657.7,2657.6,3.58408]
[1727084651441,0.3668,2657.7,2657.6,3.2078]
[1727084651635,0.74308,2657.7,2657.6,3.2078]
[1727084651930,4.50548,2657.7,2657.4,0.37631]
[1727084652129,4.50548,2657.7,2657.4,3.58411]
[1727084652130,2.05,2657.5,2657.4,3.58411]
[1727084655437,2.05,2657.5,2657.4,0.37631]
[1727084655635,2.05,2657.5,2657.4,3.58411]
[1727084655841,2.05,2657.5,2657.4,0.37631]
[1727084656045,2.05,2657.5,2657.4,3.58411]
[1727084657033,2.05,2657.5,2657.4,0.37631]
[1727084657337,2.05,2657.5,2657.4,3.58411]
[1727084657641,2.05,2657.5,2657.4,0.37631]
[1727084658033,2.05,2657.5,2657.4,3.58411]
[1727084658239,2.05,2657.5,2657.4,0.37631]
[1727084660438,2.05,2657.5,2657.4,4.55135774]
[1727084660938,2.05,2657.5,2657.4,3.58411]
[1727084661841,2.05,2657.5,2657.4,4.55135774]
[1727084662137,2.05,2657.5,2657.4,3.58411]
[1727084662341,2.05,2657.5,2657.4,4.55135774]
[1727084663636,2.05,2657.5,2657.4,3.58411]
[1727084664041,2.05,2657.5,2657.4,4.55135774]
[1727084664342,0.7759,2657.6,2657.5,0.37631]
[1727084664343,1.15219,2657.6,2657.5,0.37631]
[1727084664538,2.10219,2657.6,2657.5,0.37631]
[1727084664733,1.7259,2657.6,2657.5,0.37631]
[1727084665240,2.10219,2657.6,2657.5,0.37631]
[1727084665743,1.7259,2657.6,2657.5,0.37631]
[1727084670644,0.37632,2657.4,2657.3,3.2078]
[1727084670839,0.37635,2657.3,2657.0,3.2078]
[1727084671038,0.95,2657.1,2656.7,3.2078]
[1727084671239,0.3827,2657.2,2656.7,3.2078]
[1727084671240,0.95,2656.8,2656.7,3.2078]
[1727084671447,0.95,2656.8,2656.7,3.58422]
[1727084672437,2.06,2656.8,2656.7,3.58422]
[1727084674243,1.15208,2657.0,2656.7,3.58422]
[1727084674437,2.06,2656.9,2656.8,0.37641]
[1727084674766,2.06,2657.1,2657.0,0.37638]
[1727084675245,2.06,2657.3,2657.2,0.37634]
[1727084677653,0.37632,2657.4,2657.0,0.37637]
[1727084677654,0.94081,2657.4,2657.0,0.37637]
[1727084677852,0.37636,2657.2,2657.0,0.37637]
[1727084678043,2.06,2657.3,2656.9,0.37639]
[1727084678240,2.06,2657.0,2656.9,0.37639]
[1727084678549,2.06,2657.0,2656.9,3.58419]
[1727084679840,2.43638,2657.0,2656.9,3.2078]
[1727084680252,2.43638,2657.0,2656.9,3.58419]
[1727084680253,2.06,2657.0,2656.9,3.58419]
[1727084681953,2.06,2657.0,2656.9,3.2078]
[1727084681954,2.43638,2657.0,2656.9,3.2078]
[1727084682456,2.06,2657.0,2656.9,3.58419]
[1727084683453,3.2078,2658.0,2657.5,0.37631]
[1727084683652,2.06,2657.8,2657.7,0.37628]
[1727084689457,2.06,2657.8,2657.7,3.58408]
[1727084690145,2.06,2657.8,2657.7,4.52479]
[1727084690542,2.06,2657.8,2657.7,30.02479]
[1727084691555,0.75852,2658.1,2658.0,0.37624]
[1727084691556,2.4423,2658.1,2658.0,0.37624]
[1727084693660,2.81852,2658.1,2657.9,0.37624]
[1727084693862,2.81852,2658.1,2658.0,0.37624]
[1727084694048,2.4423,2658.1,2658.0,0.37624]
[1727084694247,1.3323,2658.1,2658.0,0.37624]
[1727084694749,0.3649,2658.2,2658.1,0.37622]
[1727084695060,1.3149,2658.2,2658.1,0.37622]
[1727084695247,0.95,2658.2,2658.1,0.37622]
[1727084695660,0.95,2658.2,2658.1,0.73652]
[1727084696058,0.3811,2658.3,2658.2,0.37621]
[1727084696260,1.3123,2658.5,2658.1,0.3603]
[1727084696561,0.95,2658.5,2658.4,0.37618]
[1727084696951,1.32617,2658.5,2658.4,0.74438]
[1727084697159,0.95,2658.5,2658.4,0.74438]
[1727084697358,0.95,2658.6,2658.5,0.37617]
[1727084697557,0.95,2658.6,2658.5,4.13777]
[1727084697558,1.01186538,2658.6,2658.5,4.13777]
[1727084697767,0.95,2658.6,2658.5,0.37617]
[1727084698254,2.06,2658.6,2658.5,0.37617]
[1727084698460,2.43615,2658.6,2658.5,0.37617]
[1727084699357,2.06,2658.6,2658.5,0.37617]
[1727084700472,0.92658417,2658.8,2658.7,0.37614]
[1727084700473,0.3599,2658.8,2658.7,0.37614]
[1727084701163,2.4451,2659.0,2658.9,0.37611]
[1727084701363,2.50695762,2659.0,2658.9,0.37611]
[1727084701561,2.50695762,2659.0,2658.8,0.37612]
[1727084701758,0.37613,2658.8,2658.6,0.37614]
[1727084701963,2.454,2658.7,2658.6,0.37614]
[1727084702169,2.06,2658.9,2658.8,0.37612]
[1727084702866,2.06,2658.9,2658.7,0.37613]
[1727084703073,2.06,2658.9,2658.8,0.37612]
[1727084706169,5.8208,2658.9,2658.4,0.3682]
[1727084706370,0.37613,2658.8,2658.6,0.37615]
[1727084707480,0.37613,2658.8,2658.4,0.3682]
[1727084707481,0.37613,2658.8,2658.5,0.37616]
[1727084707667,0.37613,2658.8,2658.6,0.37615]
[1727084708363,2.43612,2658.9,2658.7,0.37614]
[1727084708570,2.06,2658.9,2658.7,0.37614]
[1727084708766,2.43611,2658.9,2658.7,0.37614]
[1727084709672,2.43611,2658.9,2658.6,0.37614]
[1727084709874,2.43611,2658.9,2658.7,0.37614]
[1727084710967,2.43611,2658.9,2658.5,3.2078]
[1727084710968,2.43611,2658.9,2658.6,0.37614]
[1727084711571,2.43611,2658.9,2658.5,3.58395]
[1727084711572,0.37613,2658.8,2658.5,3.58395]
[1727084712269,0.37613,2658.8,2658.6,0.37615]
[1727084713363,0.37613,2658.8,2658.5,3.58396]
[1727084713666,2.06,2658.9,2658.5,3.58396]
[1727084713867,0.37613,2658.8,2658.5,3.58396]
[1727084714066,0.37614,2658.7,2658.5,3.58396]
[1727084714276,0.3672,2658.6,2658.5,3.58396]
[1727084714465,0.7476,2658.6,2658.5,3.58396]
[1727084714666,0.7476,2658.6,2658.5,0.37616]
[1727084714865,0.7476,2658.6,2658.5,3.58396]
[1727084716376,2.43612,2658.9,2658.7,0.37613]
[1727084716377,2.43611,2658.9,2658.7,0.37613]
[1727084716578,0.3804,2658.8,2658.7,0.37613]
[1727084717071,0.3804,2658.8,2658.6,0.77034]
[1727084717072,4.51732,2658.8,2658.6,0.77034]
[1727084717379,0.75652,2658.8,2658.6,0.77034]
[1727084717864,0.75652,2658.8,2658.6,0.3942]
[1727084717865,0.37614,2658.7,2658.6,0.3942]
[1727084718072,0.75653,2658.8,2658.5,3.58396]
[1727084718271,0.75653,2658.8,2658.6,0.37615]
[1727084718272,0.95,2658.7,2658.6,0.37615]
[1727084719075,1.32614,2658.7,2658.5,3.58396]
[1727084719375,0.95,2658.7,2658.5,3.2078]
[1727084719572,1.32615,2658.7,2658.5,3.2078]
[1727084719769,0.37615,2658.6,2658.5,3.2078]
[1727084719973,0.37615,2658.6,2658.4,0.37618]
[1727084720169,1.71487,2658.5,2658.3,0.37618]
[1727084720569,0.7464,2658.4,2658.3,0.37618]
[1727084721377,0.3761,2658.4,2658.3,0.37618]
[1727084721672,0.3887,2658.5,2658.2,3.6034]
[1727084721875,0.3887,2658.5,2658.4,0.37618]
[1727084723174,1.3261,2658.6,2658.5,0.37617]
[1727084725574,1.70225,2658.6,2658.5,0.37617]
[1727084725775,0.37619,2658.4,2658.3,0.37619]
[1727084725977,1.32619,2658.4,2658.3,0.37619]
[1727084726378,0.95,2658.4,2658.2,3.584]
[1727084726680,0.3782,2658.3,2658.2,3.58401]
[1727084727269,0.75439,2658.3,2658.2,3.2078]
[1727084728079,0.37623,2658.1,2657.9,0.37624]
[1727084728272,1.32623,2658.1,2657.9,0.37624]
[1727084729279,0.95,2658.1,2658.0,0.37624]
[1727084729482,1.32623,2658.1,2657.9,0.37625]
[1727084729674,0.95,2658.0,2657.9,0.37625]
[1727084730392,2.06,2658.0,2657.8,0.7518]
[1727084730783,2.06,2658.0,2657.9,0.37624]
[1727084732882,2.06,2658.0,2657.9,3.58404]
[1727084733281,3.18901,2658.2,2658.0,0.37623]
[1727084734485,2.8128,2658.2,2657.9,3.2078]
[1727084734685,3.18901,2658.2,2658.0,0.37623]
[1727084735482,2.8128,2658.2,2658.0,0.37623]
[1727084735682,3.18902,2658.2,2658.0,0.37623]
[1727084737591,2.8128,2658.2,2657.9,3.2078]
[1727084737779,2.43624,2658.0,2657.9,3.2078]
[1727084737984,0.37627,2657.8,2657.6,0.37629]
[1727084738185,0.37632,2657.5,2657.3,0.3592]
[1727084738392,2.8273,2657.7,2657.2,3.96214]
[1727084738393,2.43632,2657.4,2657.2,3.96214]
[1727084738691,2.06,2657.4,2657.2,3.5858]
[1727084738889,0.73934,2657.3,2657.2,3.2078]
[1727084739097,0.73934,2657.3,2656.8,4.17504774]
[1727084739098,0.37638,2657.0,2656.8,4.17504774]
[1727084739283,2.423,2656.9,2656.8,3.2078]
[1727084740084,2.423,2656.9,2656.8,3.58421]
[1727084740286,6.6866,2657.1,2656.8,3.2078]